bitfinex/quotes_SOLUSD_20250710
["timestamp","ask_amount","ask_price","bid_price","bid_amount"]
[1752105601078,4.69974605,157.29,157.27,0.1]
[1752105601270,8.45637692,157.34,157.27,0.1]
[1752105601461,18.79181043,157.32,157.27,0.1]
[1752105601665,18.64964886,157.29,157.27,0.1]
[1752105605286,18.79181043,157.34,157.27,0.1]
[1752105605486,146.4,157.35,157.27,0.1]
[1752105605487,18.79181043,157.32,157.27,0.1]
[1752105605669,19.07,157.36,157.27,0.1]
[1752105605870,6.3548551,157.36,157.27,16.45844788]
[1752105606186,6.38451272,157.37,157.27,6.45844788]
[1752105606485,0.03,157.37,157.28,0.14216157]
[1752105606802,0.03,157.37,157.28,18.79181043]
[1752105607086,0.03,157.37,157.3,0.14216157]
[1752105607583,0.03,157.37,157.33,6.0751]
[1752105608384,0.03,157.37,157.34,18.79181043]
[1752105609063,0.03,157.37,157.35,6.35525897]
[1752105611266,0.03,157.37,157.34,6.49782446]
[1752105611666,0.03,157.37,157.33,6.0751]
[1752105611881,0.03,157.37,157.32,6.35617659]
[1752105615903,0.03,157.37,157.33,0.14216157]
[1752105616686,0.03,157.37,157.34,6.35566289]
[1752105618607,0.03,157.37,157.32,6.35647088]
[1752105625486,0.03,157.37,157.31,6.35674145]
[1752105628210,0.03,157.37,157.3,32.58]
[1752105628711,0.03,157.37,157.29,38.93768326]
[1752105629008,0.03,157.37,157.3,32.58]
[1752105629688,6.38445129,157.37,157.3,32.58]
[1752105630712,0.03,157.37,157.28,6.35808748]
[1752105630917,8.04,157.36,157.28,32.58]
[1752105631211,8.04,157.36,157.27,96.68884608]
[1752105631414,8.04,157.36,157.28,32.58]
[1752105631902,6.35525897,157.35,157.28,38.93795194]
[1752105632704,6.35525897,157.35,157.28,6.35795194]
[1752105632903,6.35525897,157.35,157.27,39.03844475]
[1752105633503,6.35525897,157.35,157.27,6.45844475]
[1752105633908,6.35525897,157.35,157.27,39.03844475]
[1752105634106,22.24340641,157.35,157.27,39.03844475]
[1752105636809,18.64964886,157.34,157.27,0.1]
[1752105639014,22.24623402,157.33,157.27,0.1]
[1752105639410,7.8243,157.31,157.27,0.1]
[1752105641116,6.35727908,157.3,157.27,0.1]
[1752105660452,6.35687496,157.31,157.27,0.1]
[1752105660762,7.5371,157.35,157.27,32.4584545]
[1752105660972,6.35566289,157.34,157.27,32.4584545]
[1752105661258,6.35566289,157.34,157.27,0.1]
[1752105661435,32.52,157.33,157.27,0.1]
[1752105662663,6.35687496,157.31,157.27,0.1]
[1752105662958,7.636,157.29,157.27,0.1]
[1752105663152,44.64964886,157.28,157.18,1.7343]
[1752105663355,37.25866828,157.27,157.18,1.7343]
[1752105663552,32.54,157.27,157.18,8.09639818]
[1752105663858,40.196,157.29,157.21,26.0]
[1752105664056,23.36889175,157.28,157.18,8.09639818]
[1752105664257,18.64964886,157.28,157.18,8.09639818]
[1752105664651,6.35849176,157.27,157.18,8.09639818]
[1752105664843,32.58,157.26,157.18,8.09639818]
[1752105665653,6.35930047,157.25,157.18,8.09639818]
[1752105668048,38.93903012,157.26,157.19,0.14216157]
[1752105668265,6.35903012,157.26,157.19,0.14216157]
[1752105669072,6.35903012,157.26,157.21,26.0]
[1752105669776,54.81418076,157.28,157.21,32.36091066]
[1752105669951,4.71599953,157.27,157.21,32.36091066]
[1752105670649,6.35808748,157.28,157.21,32.36091066]
[1752105670960,8.2203,157.33,157.22,18.79181043]
[1752105671168,43.63319856,157.32,157.22,18.79181043]
[1752105671364,4.71672768,157.31,157.22,18.79181043]
[1752105671859,6.35727908,157.3,157.23,6.36010939]
[1752105673374,6.35687496,157.31,157.23,6.36010939]
[1752105676763,6.35687496,157.31,157.22,25.1521813]
[1752105678193,22.24906236,157.31,157.22,25.1521813]
[1752105680687,22.24906236,157.31,157.22,25.2121813]
[1752105681085,22.27906236,157.31,157.22,25.2121813]
[1752105682171,15.9221874,157.31,157.22,25.2121813]
[1752105683076,22.27906236,157.31,157.22,25.2121813]
[1752105685876,22.27906236,157.31,157.22,6.56253244]
[1752105687190,22.27906236,157.31,157.22,6.42037087]
[1752105688274,22.27906236,157.31,157.23,32.5]
[1752105689781,6.35768326,157.29,157.23,32.5]
[1752105690298,22.25189141,157.29,157.23,32.5]
[1752105690596,22.25189141,157.29,157.22,32.54]
[1752105690779,54.73189141,157.29,157.22,0.06]
[1752105693077,6.50407317,157.28,157.22,0.06]
[1752105693273,54.73189141,157.29,157.22,0.06]
[1752105693712,26.0,157.25,157.22,0.06]
[1752105693997,6.50263909,157.24,157.22,0.06]
[1752105694204,26.0,157.26,157.22,0.06]
[1752105694377,32.48,157.27,157.22,0.06]
[1752105695805,6.35889609,157.26,157.22,0.06]
[1752105699995,6.35727908,157.3,157.23,1.5331]
[1752105701807,6.51060444,157.31,157.25,26.0]
[1752105701981,0.03,157.31,157.28,1.5228]
[1752105703700,0.03,157.3,157.28,1.5228]
[1752105711588,0.03,157.3,157.28,7.88076006]
[1752105711792,0.03,157.3,157.29,32.58216157]
[1752105711995,0.03,157.3,157.29,64.93984483]
[1752105717689,0.03,157.3,157.29,83.58949369]
[1752105717896,0.03,157.3,157.29,57.58949369]
[1752105723314,0.03,157.3,157.29,146.28949369]
[1752105726930,0.03,157.37,157.36,26.0]
[1752105727134,0.03,157.37,157.36,32.4]
[1752105728019,0.03,157.37,157.36,38.7548551]
[1752105728520,0.03,157.37,157.36,57.54666553]
[1752105736628,12.25559576,157.45,157.39,26.0]
[1752105736937,12.25559576,157.45,157.4,32.36]
[1752105738044,12.25559576,157.45,157.4,38.71311744]
[1752105739240,0.1,157.46,157.41,0.14216157]
[1752105739429,0.1,157.46,157.42,32.36]
[1752105740743,6.45082937,157.46,157.42,32.36]
[1752105743638,0.1,157.46,157.42,38.71242511]
[1752105746429,6.45082503,157.46,157.42,32.36]
[1752105750334,6.45082503,157.46,157.41,32.34]
[1752105753670,6.45082503,157.46,157.39,32.35347637]
[1752105753851,6.45082503,157.46,157.4,32.32]
[1752105757371,22.32787316,157.46,157.39,26.0]
[1752105757574,6.0089,157.45,157.37,26.0]
[1752105757875,6.0089,157.45,157.38,32.3]
[1752105758667,6.35162601,157.44,157.38,32.3]
[1752105760874,6.35162601,157.44,157.37,26.0]
[1752105761076,6.35162601,157.44,157.37,58.3]
[1752105761667,6.35162601,157.44,157.37,26.0]
[1752105761882,6.35162601,157.44,157.37,58.3]
[1752105762070,1.6017,157.43,157.36,0.06]
[1752105762276,6.0735,157.42,157.36,0.06]
[1752105763863,6.35283654,157.41,157.36,0.06]
[1752105764771,12.4260364,157.42,157.36,0.06]
[1752105777784,28.30711885,157.42,157.36,0.06]
[1752105780692,12.4260364,157.42,157.36,0.06]
[1752105781772,12.4260364,157.42,157.36,6.4148551]
[1752105782595,12.42599397,157.42,157.36,6.4148551]
[1752105784578,12.42599397,157.42,157.36,0.06]
[1752105784894,28.30707642,157.42,157.36,0.06]
[1752105790386,32.28,157.41,157.36,0.06]
[1752105790586,1.5341,157.4,157.36,0.06]
[1752105792405,6.35364381,157.39,157.36,0.06]
[1752105805287,13.15434239,157.39,157.36,0.06]
[1752105808292,7.88752496,157.4,157.36,0.06]
[1752105808603,6.35342496,157.4,157.36,0.06]
[1752105808801,13.16189662,157.4,157.36,0.06]
[1752105809005,6.35342496,157.4,157.36,0.06]
[1752105809402,13.16188918,157.4,157.36,0.06]
[1752105809694,6.35342496,157.4,157.36,0.06]
[1752105810099,13.16452168,157.4,157.36,0.06]
[1752105810488,6.81109672,157.39,157.36,0.06]
[1752105811205,6.35404752,157.38,157.36,0.06]
[1752105811409,6.3537242,157.39,157.36,0.06]
[1752105812087,13.16531667,157.4,157.36,0.06]
[1752105812300,6.35340816,157.4,157.36,0.06]
[1752105812503,13.16542783,157.41,157.36,0.06]
[1752105812687,17.45306023,157.44,157.37,0.14216157]
[1752105812688,1.5731,157.44,157.37,0.14216157]
[1752105812890,6.81304555,157.44,157.39,18.79181043]
[1752105813085,6.84304555,157.45,157.39,18.79181043]
[1752105813292,0.03,157.45,157.41,0.14216157]
[1752105814103,0.03,157.45,157.4,38.63324015]
[1752105814304,0.03,157.45,157.4,32.28]
[1752105815900,6.84304555,157.45,157.4,32.28]
[1752105816106,6.84304555,157.45,157.38,32.35391023]
[1752105816913,6.84304555,157.45,157.39,0.14216157]
[1752105817498,0.03,157.45,157.4,6.35324015]
[1752105818506,0.03,157.45,157.38,26.0]
[1752105818815,6.83105231,157.45,157.38,26.0]
[1752105819218,6.83095644,157.45,157.38,26.0]
[1752105819599,6.35162601,157.44,157.38,32.35390658]
[1752105821402,13.18231889,157.45,157.39,0.14216157]
[1752105821606,6.38136245,157.45,157.4,6.35324015]
[1752105821798,0.03,157.45,157.4,6.35324015]
[1752105822699,0.03,157.45,157.41,0.14216157]
[1752105823796,0.03,157.45,157.42,6.35243298]
[1752105826828,0.03,157.45,157.43,18.79181043]
[1752105827493,0.03,157.45,157.44,32.42216157]
[1752105828425,0.03,157.45,157.44,38.77378758]
[1752105836421,0.03,157.45,157.44,32.28]
[1752105837199,0.03,157.45,157.42,95.05231997]
[1752105837514,0.03,157.45,157.43,32.26]
[1752105837922,0.03,157.45,157.42,88.7]
[1752105838228,0.03,157.45,157.42,120.96]
[1752105838616,0.03,157.45,157.42,32.26]
[1752105838823,0.03,157.45,157.42,38.612406]
[1752105841030,0.03,157.45,157.43,0.14216157]
[1752105841225,0.03,157.45,157.44,32.26]
[1752105842019,0.03,157.45,157.44,38.75378758]
[1752105846941,0.03,157.45,157.44,32.40216157]
[1752105847146,0.03,157.45,157.42,95.05226501]
[1752105847316,0.03,157.45,157.42,88.7]
[1752105847517,0.03,157.45,157.42,120.96]
[1752105847916,0.03,157.45,157.42,88.7]
[1752105848918,0.03,157.45,157.41,0.06]
[1752105849113,0.14216157,157.5,157.41,0.06]
[1752105849315,32.26,157.49,157.41,0.06]
[1752105849720,0.14216157,157.48,157.41,0.06]
[1752105849942,6.8454477,157.48,157.41,0.06]
[1752105850524,22.22645583,157.47,157.41,0.06]
[1752105852153,1.5983,157.46,157.41,0.06]
[1752105852839,6.35122261,157.45,157.41,0.06]
[1752105854248,1.5983,157.46,157.41,0.06]
[1752105854249,7.94922834,157.46,157.41,0.06]
[1752105854451,15.8736997,157.5,157.41,32.32]
[1752105854650,6.78611284,157.49,157.41,32.32]
[1752105855220,6.34960949,157.49,157.42,0.14216157]
[1752105855845,6.34938326,157.5,157.42,0.14216157]
[1752105856022,0.03,157.49,157.42,0.14216157]
[1752105856334,0.03,157.49,157.43,6.35202947]
[1752105857742,0.03,157.49,157.44,0.14216157]
[1752105857917,0.03,157.49,157.46,0.14216157]
[1752105859640,0.03,157.49,157.47,6.35041595]
[1752105866645,0.03,157.49,157.48,32.26]
[1752105866858,0.03,157.49,157.48,32.40216157]
[1752105868834,0.03,157.49,157.48,38.75217427]
[1752105871159,0.03,157.49,157.47,88.7]
[1752105871357,0.03,157.49,157.47,95.05031848]
[1752105872841,0.03,157.49,157.47,88.7]
[1752105875782,0.03,157.49,157.47,95.05028336]
[1752105877044,0.03,157.49,157.47,6.35028336]
[1752105877444,0.03,157.49,157.47,6.41028336]
[1752105878960,0.03,157.49,157.48,32.26]
[1752105879271,0.03,157.49,157.48,32.24]
[1752105879576,0.03,157.49,157.48,32.38216157]
[1752105881268,0.03,157.49,157.48,38.73217427]
[1752105884264,0.03,157.49,157.48,6.49217427]
[1752105884573,0.03,157.49,157.48,32.24]
[1752105884873,0.03,157.49,157.48,32.38216157]
[1752105885966,0.03,157.49,157.48,127.43217427]
[1752105887463,0.03,157.51,157.49,0.14216157]
[1752105887661,0.03,157.51,157.5,32.38216157]
[1752105887860,0.03,157.51,157.5,121.08216157]
[1752105888366,0.03,157.51,157.5,127.43136791]
[1752105892785,0.03,157.51,157.5,95.19136791]
[1752105892973,0.03,157.51,157.5,127.43136791]
[1752105893573,0.03,157.51,157.5,88.84216157]
[1752105893775,0.03,157.51,157.5,121.10216157]
[1752105894286,0.03,157.51,157.5,120.96]
[1752105894687,0.03,157.51,157.5,88.7]
[1752105894887,0.03,157.51,157.49,32.26]
[1752105896685,0.03,157.51,157.47,6.41037532]
[1752105896890,0.03,157.51,157.48,32.24]
[1752105898591,0.03,157.51,157.48,38.58998564]
[1752105899295,0.03,157.51,157.49,0.14216157]
[1752105899479,0.03,157.51,157.5,32.38216157]
[1752105900570,0.03,157.51,157.5,38.73136791]
[1752105901487,0.03,157.52,157.51,0.14216157]
[1752105902988,0.03,157.52,157.51,6.49096482]
[1752105903867,0.03,157.52,157.51,6.34880325]
[1752105904287,0.03,157.52,157.51,6.49096482]
[1752105904977,0.03,157.52,157.51,38.75096482]
[1752105917892,0.03,157.52,157.51,127.45096482]
[1752105918697,0.1,157.53,157.52,0.14216157]
[1752105919809,0.1,157.53,157.52,6.49056177]
[1752105921419,0.1,157.53,157.52,95.19056177]
[1752105935017,0.2,157.57,157.52,111.06156227]
[1752105935209,0.2,157.57,157.54,0.14216157]
[1752105935412,0.2,157.57,157.56,0.14216157]
[1752105936417,0.2,157.57,157.56,6.48895009]
[1752105938632,0.2,157.57,157.56,32.24]
[1752105942814,0.2,157.57,157.55,0.14216157]
[1752105943020,0.2,157.57,157.56,32.24]
[1752105946525,0.2,157.57,157.54,6.34747095]
[1752105946526,0.2,157.57,157.54,0.14216157]
[1752105946730,0.2,157.57,157.55,32.24]
[1752105948714,0.2,157.57,157.56,6.34678852]
[1752105949119,0.2,157.57,157.56,6.48895009]
[1752105957353,1e-08,157.57,157.56,6.48895009]
[1752105958535,1e-08,157.59,157.57,0.14216157]
[1752105958738,0.03,157.66,157.59,38.31216157]
[1752105958941,0.03,157.66,157.61,0.14216157]
[1752105959143,0.03,157.66,157.62,32.38216157]
[1752105961045,0.03,157.66,157.62,38.72653411]
[1752105961436,0.03,157.66,157.62,32.38216157]
[1752105961829,0.03,157.66,157.62,38.72653411]
[1752105962343,0.03,157.66,157.62,32.24]
[1752105962839,6.54324732,157.65,157.62,32.24]
[1752105963258,6.3344,157.64,157.56,15.86620435]
[1752105963458,6.3344,157.64,157.57,32.24]
[1752105963826,6.3344,157.64,157.56,15.86620435]
[1752105964024,12.67804695,157.64,157.57,38.58638573]
[1752105964337,12.67804695,157.64,157.58,0.14216157]
[1752105964641,12.67804695,157.64,157.59,32.24]
[1752105966047,6.54400705,157.63,157.59,32.24]
[1752105966432,6.54400705,157.63,157.57,6.34631484]
[1752105967148,6.54400705,157.63,157.57,38.58631484]
[1752105967847,1.6568,157.62,157.53,0.06]
[1752105968258,1.6568,157.62,157.54,32.24]
[1752105969051,6.34477507,157.61,157.54,38.58759426]
[1752105969446,6.34477507,157.61,157.54,6.34759426]
[1752105969642,6.34477507,157.61,157.54,38.58759426]
[1752105970159,8.00127693,157.62,157.55,0.14216157]
[1752105970558,1.6568,157.62,157.55,0.14216157]
[1752105971060,1.6568,157.62,157.57,0.14216157]
[1752105971228,0.2,157.63,157.57,0.14216157]
[1752105972748,6.54397681,157.63,157.58,6.34598299]
[1752105973145,0.2,157.63,157.58,6.34598299]
[1752105980567,6.54405223,157.63,157.58,6.34598299]
[1752105981867,6.54405223,157.63,157.57,6.48850202]
[1752105987880,6.54405223,157.63,157.53,0.06]
[1752105987881,1.5611,157.62,157.53,0.06]
[1752105988260,1.5611,157.62,157.54,32.22]
[1752105988572,1.5611,157.62,157.55,0.14216157]
[1752105988786,1.5611,157.62,157.56,0.06]
[1752105988955,6.34477507,157.61,157.56,0.06]
[1752105997159,1.5611,157.62,157.56,0.06]
[1752105999077,1.5611,157.62,157.57,0.14216157]
[1752106001388,1.5611,157.62,157.58,6.34598299]
[1752106004184,7.90559375,157.62,157.56,0.06]
[1752106004389,14.8363423,157.62,157.56,0.06]
[1752106004583,6.93074855,157.61,157.56,0.06]
[1752106006164,6.34517766,157.6,157.56,0.06]
[1752106007375,6.34477507,157.61,157.56,0.06]
[1752106017615,6.3455803,157.59,157.56,0.06]
[1752106018730,6.1378,157.59,157.56,0.06]
[1752106018926,8.56243844,157.58,157.56,0.06]
[1752106019226,1.6533,157.58,157.56,0.06]
[1752106019424,6.90407495,157.57,157.56,0.06]
[1752106020537,13.25046068,157.57,157.56,0.06]
[1752106020839,6.34638573,157.57,157.56,0.06]
[1752106022035,13.24968019,157.57,157.56,0.06]
[1752106022647,6.34638573,157.57,157.56,0.06]
[1752106040652,70.82638573,157.57,157.56,0.06]
[1752106045772,77.84096817,157.57,157.56,0.06]
[1752106048049,71.49458244,157.57,157.56,0.06]
[1752106048254,6.3461182,157.58,157.56,0.06]
[1752106048255,64.48,157.58,157.56,0.06]
[1752106048475,64.48,157.59,157.56,0.06]
[1752106049263,64.48,157.6,157.56,0.06]
[1752106050075,70.82520461,157.6,157.56,0.06]
[1752106058275,7.04834455,157.59,157.56,0.06]
[1752106058475,64.46,157.58,157.56,0.06]
[1752106058785,71.50770165,157.57,157.56,0.06]
[1752106059491,71.64986322,157.57,157.56,1e-08]
[1752106059694,86.12714895,157.57,157.56,1e-08]
[1752106060568,146.54216157,157.56,157.52,0.06]
[1752106060886,0.14216157,157.54,157.52,0.06]
[1752106061088,116.29951208,157.53,157.52,0.06]
[1752106061478,116.15735051,157.53,157.52,0.06]
[1752106061882,122.50534771,157.53,157.52,0.06]
[1752106063377,122.64750928,157.53,157.52,0.06]
[1752106064778,70.8277053,157.54,157.52,0.06]
[1752106064965,64.48,157.56,157.52,0.06]
[1752106065370,64.48,157.57,157.52,0.06]
[1752106065977,70.82641343,157.57,157.52,0.06]
[1752106066674,64.48,157.57,157.52,0.06]
[1752106066872,70.82612991,157.58,157.52,0.06]
[1752106067683,64.48,157.58,157.52,0.06]
[1752106067898,70.8261795,157.58,157.52,0.06]
[1752106068276,6.97695011,157.57,157.52,0.06]
[1752106068476,64.48,157.56,157.52,0.06]
[1752106068884,25.64971636,157.55,157.52,0.06]
[1752106069084,71.4800675,157.54,157.52,0.06]
[1752106069398,64.48,157.54,157.52,0.06]
[1752106070302,70.82798195,157.54,157.52,0.06]
[1752106074002,15.86703999,157.56,157.52,0.06]
[1752106074304,32.24,157.55,157.52,0.06]
[1752106075003,6.34638573,157.57,157.52,0.06]
[1752106075607,38.58638573,157.57,157.52,0.06]
[1752106077001,0.03,157.56,157.52,0.06]
[1752106078594,6.37678852,157.56,157.52,0.06]
[1752106083216,0.03,157.56,157.52,0.06]
[1752106088811,0.03,157.56,157.52,1.7029]
[1752106089123,0.03,157.56,157.52,7.8482]
[1752106090928,0.03,157.56,157.53,6.3479972]
[1752106096511,0.03,157.56,157.52,14.19644185]
[1752106096722,0.03,157.56,157.52,27.7029]
[1752106096920,0.03,157.56,157.52,1.7029]
[1752106105749,0.03,157.56,157.52,0.06]
[1752106108629,0.03,157.56,157.52,0.20216157]
[1752106109048,0.03,157.56,157.52,32.42216157]
[1752106109924,0.03,157.56,157.53,6.3479972]
[1752106113733,0.03,157.56,157.55,26.0]
[1752106114735,0.03,157.56,157.55,32.34719136]
[1752106114947,0.03,157.56,157.55,26.0]
[1752106115753,0.03,157.56,157.53,6.34791453]
[1752106116958,0.03,157.56,157.52,64.62826071]
[1752106121557,0.03,157.56,157.53,0.14216157]
[1752106121866,0.03,157.56,157.55,26.0]
[1752106122738,0.03,157.56,157.55,32.34719136]
[1752106124556,0.03,157.56,157.55,64.56719136]
[1752106127056,7.09842706,157.61,157.55,64.70935293]
[1752106127263,0.03,157.62,157.55,64.70935293]
[1752106127665,7.12874004,157.62,157.56,0.14216157]
[1752106127874,0.03,157.62,157.59,6.3455803]
[1752106128069,0.03,157.62,157.59,38.5655803]
[1752106129471,0.03,157.62,157.59,32.22]
[1752106133080,0.03,157.62,157.57,38.56629587]
[1752106133473,0.03,157.62,157.57,32.22]
[1752106135371,0.03,157.62,157.57,38.56636211]
[1752106136591,0.03,157.62,157.56,38.56678852]
[1752106137689,0.03,157.62,157.56,6.34678852]
[1752106138073,0.03,157.62,157.56,38.56678852]
[1752106142877,0.03,157.62,157.56,32.22]
[1752106143274,7.1316594,157.62,157.55,26.06]
[1752106144806,6.34477507,157.61,157.55,32.40709069]
[1752106145579,6.34477507,157.61,157.55,64.62709069]
[1752106149002,6.34477507,157.61,157.55,0.06]
[1752106149003,18.64964886,157.6,157.55,0.06]
[1752106149206,8.69125695,157.59,157.55,0.06]
[1752106149401,15.13245695,157.59,157.55,0.06]
[1752106149588,7.08185695,157.58,157.55,0.06]
[1752106149788,7.08185695,157.57,157.55,0.06]
[1752106150004,7.08185695,157.58,157.55,0.06]
[1752106150202,7.08185695,157.57,157.55,0.06]
[1752106150508,7.08185695,157.58,157.55,0.06]
[1752106150696,7.08185695,157.57,157.55,0.06]
[1752106150993,7.08185695,157.58,157.55,0.06]
[1752106151183,6.34678852,157.56,157.55,0.06]
[1752106151884,7.08120045,157.58,157.55,0.06]
[1752106152089,15.03642887,157.59,157.55,0.06]
[1752106152403,6.34582842,157.59,157.55,0.06]
[1752106152707,13.42822999,157.59,157.55,0.06]
[1752106153085,6.34582842,157.59,157.55,0.06]
[1752106153398,13.36891758,157.59,157.55,0.06]
[1752106154102,7.02308916,157.59,157.55,0.06]
[1752106154911,38.56525618,157.6,157.55,0.06]
[1752106155494,7.02315853,157.59,157.55,0.06]
[1752106157416,6.34598299,157.58,157.55,0.06]
[1752106160620,0.03,157.62,157.56,26.0]
[1752106160920,7.00863897,157.61,157.56,26.0]
[1752106161216,0.03,157.62,157.56,26.0]
[1752106161604,6.37447226,157.62,157.57,6.34638573]
[1752106162111,6.37447226,157.62,157.56,26.0]
[1752106162822,13.38303629,157.62,157.56,26.0]
[1752106164411,6.37447226,157.62,157.56,26.0]
[1752106164723,6.37447226,157.62,157.56,32.34677434]
[1752106164907,13.38424089,157.62,157.56,32.34677434]
[1752106165108,0.03,157.62,157.56,32.34677434]
[1752106165310,0.03,157.62,157.57,0.14216157]
[1752106166211,0.03,157.62,157.58,6.34598299]
[1752106177246,0.03,157.62,157.59,0.14216157]
[1752106177416,0.03,157.62,157.61,26.0]
[1752106178831,0.03,157.62,157.61,32.34477507]
[1752106183839,0.03,157.62,157.61,64.54477507]
[1752106184416,0.03,157.62,157.61,58.2]
[1752106186423,0.03,157.62,157.61,26.0]
[1752106187819,0.03,157.62,157.59,32.34216157]
[1752106189245,0.03,157.62,157.59,32.2]
[1752106189643,0.03,157.62,157.58,26.0]
[1752106189860,0.03,157.62,157.57,88.7]
[1752106190155,0.03,157.62,157.56,0.06]
[1752106190367,7.12256835,157.62,157.56,0.06]
[1752106190935,18.64964886,157.61,157.56,0.06]
[1752106191158,7.09256835,157.6,157.56,0.06]
[1752106191357,6.34598299,157.58,157.56,0.06]
[1752106191562,13.43855134,157.58,157.56,0.06]
[1752106194458,6.34598299,157.58,157.56,0.06]
[1752106198136,13.34214317,157.58,157.56,0.06]
[1752106198342,18.64964886,157.57,157.56,0.06]
[1752106198554,25.64580904,157.57,157.56,0.06]
[1752106199369,31.99219477,157.57,157.56,0.06]
[1752106200265,31.99219477,157.57,157.55,0.06]
[1752106200473,57.86580904,157.56,157.55,0.06]
[1752106201141,50.86964886,157.56,157.55,0.06]
[1752106201344,64.20627596,157.56,157.55,0.06]
[1752106201950,57.21643738,157.56,157.55,0.06]
[1752106205750,73.08340869,157.56,157.46,39.18001712]
[1752106207449,73.08340869,157.56,157.46,32.8292]
[1752106209153,73.08340869,157.56,157.46,39.17994928]
[1752106209869,74.66520869,157.56,157.46,33.90774928]
[1752106211154,74.66520869,157.56,157.46,27.557]
[1752106212054,74.66520869,157.56,157.46,33.90778381]
[1752106213376,22.21657991,157.54,157.46,27.557]
[1752106213576,32.22,157.53,157.46,27.557]
[1752106215275,32.22,157.53,157.44,32.49365185]
[1752106215482,6.3484002,157.52,157.44,32.49365185]
[1752106222265,32.22,157.53,157.47,26.0]
[1752106222266,6.3479972,157.53,157.47,26.0]
[1752106223278,6.3479972,157.53,157.47,32.35006718]
[1752106224778,32.22,157.55,157.48,0.14216157]
[1752106225081,1.5818,157.56,157.48,0.14216157]
[1752106225380,6.34720447,157.55,157.48,0.14216157]
[1752106226467,6.34720447,157.55,157.47,153.27006718]
[1752106226664,22.21518288,157.55,157.47,146.92]
[1752106228597,6.3479972,157.53,157.47,146.92]
[1752106229166,6.3479972,157.53,157.47,58.22]
[1752106231586,6.3479972,157.53,157.47,64.57040966]
[1752106232291,13.36194203,157.53,157.47,64.57040966]
[1752106232584,6.3479972,157.53,157.47,64.57040966]
[1752106232889,0.03,157.53,157.47,64.57040966]
[1752106233093,7.03017394,157.53,157.47,64.57040966]
[1752106233394,7.00017394,157.52,157.47,64.57040966]
[1752106234184,6.3779972,157.53,157.47,64.57040966]
[1752106234388,7.00017394,157.52,157.47,64.57040966]
[1752106234587,6.3779972,157.53,157.47,64.57040966]
[1752106234785,7.01411041,157.52,157.47,64.57040966]
[1752106235095,6.3779972,157.53,157.47,64.57040966]
[1752106235291,6.34880325,157.51,157.47,64.57040966]
[1752106235600,6.34856505,157.52,157.47,64.57040966]
[1752106235897,7.01842499,157.51,157.47,64.57040966]
[1752106236100,6.34856505,157.52,157.47,64.57040966]
[1752106236301,7.01842499,157.51,157.47,64.57040966]
[1752106236607,0.03,157.53,157.47,64.57040966]
[1752106236901,7.01954507,157.52,157.47,64.57040966]
[1752106237076,7.01954507,157.51,157.47,64.57040966]
[1752106237290,0.03,157.53,157.47,64.57040966]
[1752106237487,7.02797955,157.52,157.47,58.22]
[1752106237786,7.02797955,157.51,157.47,58.22]
[1752106237985,0.03,157.53,157.47,58.22]
[1752106238298,7.02820546,157.52,157.47,58.22]
[1752106238471,7.02820546,157.51,157.47,58.22]
[1752106238672,6.34902874,157.51,157.47,58.22]
[1752106241902,0.03,157.53,157.47,58.22]
[1752106242092,7.03264737,157.52,157.47,58.22]
[1752106242295,0.03,157.53,157.47,58.22]
[1752106242471,7.03498371,157.52,157.47,58.22]